[Event "Chpt Reg Jeunes Occitanie 2026 - Espalion"]
[Site "Espalion, France"]
[Round "2.2"]
[ECO "?"]
[Annotator "?"]
[TimeControl "1h30 + 30sec/cp"]

1. Nf3 {[%clk 1:30:43][%emt 0:00:16]} 1... c5 {[%clk 1:30:59][%emt 0:00:02]}
2. g3 {[%clk 1:31:06][%emt 0:00:07]} 2... d5 {[%clk 1:31:26][%emt 0:00:03]} 3.
Bg2 {[%clk 1:31:08][%emt 0:00:27]} 3... Nf6 {[%clk 1:31:54][%emt 0:00:03]} 4.
d3 {[%clk 1:30:51][%emt 0:00:47]} 4... Nc6 {[%clk 1:32:11][%emt 0:00:12]} 5.
Nbd2 {[%clk 1:31:05][%emt 0:00:16]} 5... Bg4 {[%clk 1:31:33][%emt 0:01:07]} 6.
O-O {[%clk 1:30:49][%emt 0:00:48]} 6... e6 {[%clk 1:31:52][%emt 0:00:10]} 7.
Re1 {[%clk 1:30:18][%emt 0:01:02]} 7... Be7 {[%clk 1:32:03][%emt 0:00:19]} 8.
e4 {[%clk 1:29:31][%emt 0:01:16]} 8... O-O {[%clk 1:32:08][%emt 0:00:25]} 9.
exd5 {[%clk 1:24:43][%emt 0:05:18]} 9... exd5 {[%clk 1:32:16][%emt 0:00:22]}
10. Nf1 {[%clk 1:23:05][%emt 0:02:08]} 10... Qd7 {[%clk 1:27:07][%emt 0:05:38]}
 11. Ne3 {[%clk 1:18:46][%emt 0:04:49]} 11... Bh5 {[%clk 1:26:05][%emt
0:01:32]} 12. a4 {[%clk 1:11:47][%emt 0:07:31]} 12... Rfe8 {[%clk
1:23:50][%emt 0:02:43]} 13. b3 {[%clk 1:07:56][%emt 0:04:21]} 13... Nd4 {[%clk
1:02:19][%emt 0:22:01]} 14. c3 {[%clk 1:00:33][%emt 0:07:53]} 14... Nc6 {[%clk
0:59:06][%emt 0:03:43]} 15. Qd2 {[%clk 0:53:59][%emt 0:07:03]} 15... Rad8
{[%clk 0:47:01][%emt 0:12:36]} 16. Ba3 {[%clk 0:42:30][%emt 0:11:59]} 16... a5
{[%clk 0:39:33][%emt 0:07:59]} 17. Nh4 {[%clk 0:32:18][%emt 0:10:41]} 17... b6
{[%clk 0:36:34][%emt 0:03:29]} 18. Nef5 {[%clk 0:28:10][%emt 0:04:36]} 18...
Bf8 {[%clk 0:32:03][%emt 0:05:03]} 19. Qg5 {[%clk 0:17:06][%emt 0:11:34]}
19... Bg6 {[%clk 0:29:23][%emt 0:03:10]} 20. Bh3 {[%clk 0:14:30][%emt 0:03:06]}
 20... Qc7 {[%clk 0:26:35][%emt 0:03:19]} 21. Nxg6 {[%clk 0:12:40][%emt
0:02:20]} 21... hxg6 {[%clk 0:26:01][%emt 0:01:03]} 22. Nh4 {[%clk
0:10:44][%emt 0:02:25]} 22... d4 {[%clk 0:21:21][%emt 0:05:12]} 23. c4 {[%clk
0:09:22][%emt 0:01:51]} 23... Ne5 {[%clk 0:19:54][%emt 0:01:57]} 24. Qd2
{[%clk 0:03:45][%emt 0:06:07]} 24... Nh7 {[%clk 0:19:21][%emt 0:01:03]} 25.
Bg2 {[%clk 0:03:49][%emt 0:00:26]} 25... Be7 {[%clk 0:18:54][%emt 0:00:57]}
26. Nf3 {[%clk 0:03:43][%emt 0:00:36]} 26... Ng4 {[%clk 0:17:31][%emt 0:01:53]}
 27. h3 {[%clk 0:02:45][%emt 0:01:29]} 27... Nh6 {[%clk 0:17:59][%emt 0:00:01]}
 28. h4 {[%clk 0:02:25][%emt 0:00:50]} 28... Ng4 {[%clk 0:18:07][%emt 0:00:22]}
 29. Qe2 {[%clk 0:01:44][%emt 0:01:12]} 29... Nhf6 {[%clk 0:18:02][%emt
0:00:33]} 30. Qd2 {[%clk 0:01:12][%emt 0:01:03]} 30... Bd6 {[%clk
0:17:57][%emt 0:00:35]} 31. Ng5 {[%clk 0:00:41][%emt 0:01:01]} 31... Nd7
{[%clk 0:15:05][%emt 0:03:22]} 32. Ne4 {[%clk 0:00:51][%emt 0:00:20]} 32...
Nde5 {[%clk 0:14:45][%emt 0:00:51]} 33. Nxd6 {[%clk 0:00:34][%emt 0:00:47]}
33... Qxd6 {[%clk 0:15:13][%emt 0:00:01]} 34. Re2 {[%clk 0:00:35][%emt
0:00:29]} 34... Re7 {[%clk 0:14:51][%emt 0:00:52]} 35. Rae1 {[%clk
0:00:54][%emt 0:00:11]} 35... Rde8 {[%clk 0:15:20]} 36. f4 {[%clk
0:00:41][%emt 0:00:43]} 36... Nc6 {[%clk 0:15:03][%emt 0:00:47]} 37. Rxe7
{[%clk 0:01:10][%emt 0:00:01]} 37... Rxe7 {[%clk 0:15:27][%emt 0:00:06]} 38.
Rxe7 {[%clk 0:01:32][%emt 0:00:08]} 38... Nxe7 {[%clk 0:15:46][%emt 0:00:10]}
39. Qe2 {[%clk 0:01:15][%emt 0:00:47]} 39... Ne3 {[%clk 0:16:11][%emt 0:00:05]}
 40. Be4 {[%clk 0:01:01][%emt 0:00:45]} 40... Qe6 {[%clk 0:15:52][%emt
0:00:49]} 41. Bc1 {[%clk 0:00:44][%emt 0:00:46]} 41... Qh3 {[%clk
0:16:21][%emt 0:00:01]} 42. Qh2 {[%clk 0:00:35][%emt 0:00:40]} 42... Qg4
{[%clk 0:16:50]} 43. Qd2 {[%clk 0:00:31][%emt 0:00:34]} 43... Qxg3+ {[%clk
0:17:15][%emt 0:00:05]} 44. Kh1 {[%clk 0:00:35][%emt 0:00:25]} 44... Qxh4+
{[%clk 0:17:38][%emt 0:00:06]} 45. Qh2 {[%clk 0:00:34][%emt 0:00:32]} 45...
Qe1+ {[%clk 0:13:31][%emt 0:04:37]} 46. Qg1 {[%clk 0:00:56][%emt 0:00:08]}
46... Qe2 {[%clk 0:13:13][%emt 0:00:47]} 47. Qh2 {[%clk 0:00:32][%emt 0:00:55]}
 47... Qf1+ {[%emt 0:01:19]} 0-1

[White "POSOCCO DE GRANDI, Marc"]
[Black "DESPRATS EXPOSITO, Justin"]
[WhiteElo "1871"]
[BlackElo "1663"]
[Result "1-0"]
[Date "2026.03.04"]

[Event "Chpt Reg Jeunes Occitanie 2026 - Espalion"]
[Site "Espalion, France"]
[Round "2.3"]
[ECO "?"]
[Annotator "?"]
[TimeControl "1h30 + 30sec/cp"]

1. d4 {[%clk 1:30:58][%emt 0:00:01]} 1... f5 {[%clk 1:30:51][%emt 0:00:10]} 2.
Bg5 {[%clk 1:31:17][%emt 0:00:11]} 2... g6 {[%clk 1:30:37][%emt 0:00:44]} 3.
c4 {[%clk 1:31:34][%emt 0:00:13]} 3... Bg7 {[%clk 1:30:55][%emt 0:00:12]} 4.
Nf3 {[%clk 1:31:43][%emt 0:00:20]} 4... d6 {[%clk 1:31:07][%emt 0:00:19]} 5.
g3 {[%clk 1:31:40][%emt 0:00:34]} 5... Nf6 {[%clk 1:30:55][%emt 0:00:42]} 6.
Bg2 {[%clk 1:31:55][%emt 0:00:15]} 6... c6 {[%clk 1:30:12][%emt 0:01:12]} 7.
O-O {[%clk 1:31:59][%emt 0:00:25]} 7... O-O {[%clk 1:30:37][%emt 0:00:06]} 8.
Nc3 {[%clk 1:31:51][%emt 0:00:38]} 8... Nbd7 {[%clk 1:30:10][%emt 0:00:56]} 9.
Qc2 {[%clk 1:28:58][%emt 0:03:24]} 9... e5 {[%clk 1:17:44][%emt 0:12:55]} 10.
e4 {[%clk 1:27:43][%emt 0:01:46]} 10... fxe4 {[%clk 1:17:51][%emt 0:00:23]}
11. Nxe4 {[%clk 1:27:30][%emt 0:00:44]} 11... Qc7 {[%clk 1:14:50][%emt
0:03:30]} 12. dxe5 {[%clk 1:26:08][%emt 0:01:53]} 12... Nxe4 {[%clk
1:15:02][%emt 0:00:18]} 13. Qxe4 {[%clk 1:26:11][%emt 0:00:26]} 13... Nxe5
{[%clk 1:15:14][%emt 0:00:18]} 14. Nxe5 {[%clk 1:25:33][%emt 0:01:08]} 14...
Bxe5 {[%clk 1:15:32][%emt 0:00:12]} 15. Qe2 {[%clk 1:24:21][%emt 0:01:42]}
15... Qb6 {[%clk 1:14:15][%emt 0:01:46]} 16. Rad1 {[%clk 1:22:58][%emt
0:01:54]} 16... h5 {[%clk 1:00:12][%emt 0:14:33]} 17. h3 {[%clk 1:20:26][%emt
0:03:02]} 17... Qxb2 {[%clk 0:46:15][%emt 0:14:25]} 18. Qxb2 {[%clk
1:18:50][%emt 0:02:09]} 18... Bxb2 {[%clk 0:46:37][%emt 0:00:08]} 19. Rxd6
{[%clk 1:18:54][%emt 0:00:26]} 19... Be5 {[%clk 0:46:51][%emt 0:00:15]} 20.
Rxg6+ {[%clk 1:13:52][%emt 0:05:32]} 20... Kh7 {[%clk 0:40:26][%emt 0:06:51]}
21. Rh6+ {[%clk 1:11:39][%emt 0:02:47]} 21... Kg7 {[%clk 0:40:48][%emt
0:00:08]} 22. Rxh5 {[%clk 1:10:52][%emt 0:01:18]} 22... Kg6 {[%clk
0:35:56][%emt 0:05:22]} 23. g4 {[%clk 1:10:54][%emt 0:00:28]} 23... Be6 {[%clk
0:35:05][%emt 0:01:20]} 24. Re1 {[%clk 1:10:35][%emt 0:00:50]} 24... Rf5
{[%clk 0:33:37][%emt 0:01:57]} 25. gxf5+ {[%clk 1:10:14][%emt 0:00:51]} 25...
Kxh5 {[%clk 0:33:43][%emt 0:00:24]} 26. fxe6 {[%clk 1:10:20][%emt 0:00:24]}
26... Kxg5 {[%clk 0:33:53][%emt 0:00:20]} 27. Rxe5+ {[%clk 1:10:44][%emt
0:00:06]} 27... Kf6 {[%clk 0:34:08][%emt 0:00:15]} 28. f4 {[%clk 1:10:31][%emt
0:00:43]} 28... Rd8 {[%clk 0:34:18][%emt 0:00:19]} 29. Kf2 {[%clk
1:10:18][%emt 0:00:44]} 29... a5 {[%clk 0:34:14][%emt 0:00:35]} 30. Bf3 {[%clk
1:10:29][%emt 0:00:18]} 30... b5 {[%clk 0:34:18][%emt 0:00:26]} 31. cxb5
{[%clk 1:10:26][%emt 0:00:33]} 31... cxb5 {[%clk 0:34:44][%emt 0:00:04]} 32.
Bh5 {[%clk 1:10:23][%emt 0:00:33]} 32... Ke7 {[%clk 0:34:35][%emt 0:00:39]}
33. Rxb5 {[%clk 1:08:07][%emt 0:02:46]} 33... Kxe6 {[%clk 0:34:53][%emt
0:00:12]} 34. Rxa5 {[%clk 1:08:07][%emt 0:00:30]} 34... Kf6 {[%clk
0:35:08][%emt 0:00:15]} 35. Bg4 {[%clk 1:08:03][%emt 0:00:34]} 35... Kf7
{[%clk 0:35:14][%emt 0:00:24]} 36. Ra6 {[%clk 1:08:24][%emt 0:00:09]} 36...
Kg8 {[%clk 0:35:26][%emt 0:00:18]} 37. Ra7 {[%clk 1:08:46][%emt 0:00:09]}
37... Kh8 {[%clk 0:35:42][%emt 0:00:11]} 38. a4 {[%clk 1:08:55][%emt 0:00:22]}
38... Kg8 {[%clk 0:35:59][%emt 0:00:14]} 39. a5 {[%clk 1:09:05][%emt 0:00:20]}
39... Kh8 {[%clk 0:36:22][%emt 0:00:07]} 40. a6 {[%clk 1:08:58][%emt 0:00:37]}
40... Kg8 {[%clk 0:36:49][%emt 0:00:02]} 41. Rd7 {[%clk 1:09:11][%emt 0:00:18]}
 41... Rf8 {[%clk 0:37:05][%emt 0:00:13]} 42. Kg3 {[%clk 1:08:43][%emt
0:00:58]} 42... Rb8 {[%clk 0:37:22][%emt 0:00:13]} 43. a7 {[%clk 1:09:04][%emt
0:00:10]} 43... Ra8 {[%clk 0:37:02][%emt 0:00:50]} 44. Bf3 {[%clk
1:09:20][%emt 0:00:12]} 1-0

[White "COUDRE, Pablo"]
[Black "DOUCEMENT, Timothee"]
[WhiteElo "1652"]
[BlackElo "1856"]
[Result "1/2-1/2"]
[Date "2026.03.04"]

[Event "Chpt Reg Jeunes Occitanie 2026 - Espalion"]
[Site "Espalion, France"]
[Round "2.4"]
[ECO "?"]
[Annotator "?"]
[TimeControl "1h30 + 30sec/cp"]

1. e4 {[%clk 1:30:50][%emt 0:00:09]} 1... e6 {[%clk 1:29:47][%emt 0:01:15]} 2.
d4 {[%clk 1:31:15][%emt 0:00:04]} 2... d5 {[%clk 1:30:13][%emt 0:00:04]} 3.
exd5 {[%clk 1:31:17][%emt 0:00:29]} 3... exd5 {[%clk 1:30:35][%emt 0:00:08]}
4. Nf3 {[%clk 1:31:42][%emt 0:00:04]} 4... Nf6 {[%clk 1:30:56][%emt 0:00:10]}
5. Bd3 {[%clk 1:32:06][%emt 0:00:05]} 5... Bd6 {[%emt 0:00:10]} 6. O-O {[%clk
1:32:27][%emt 0:00:04]} 6... O-O {[%clk 1:31:44][%emt 0:00:07]} 7. c3 {[%clk
1:32:08][%emt 0:00:49]} 7... Bg4 {[%clk 1:32:07][%emt 0:00:08]} 8. Bg5 {[%clk
1:31:52][%emt 0:00:45]} 8... c6 {[%clk 1:32:28][%emt 0:00:09]} 9. Re1 {[%clk
1:32:03][%emt 0:00:19]} 9... Nbd7 {[%clk 1:32:50][%emt 0:00:08]} 10. Nbd2
{[%clk 1:32:21][%emt 0:00:12]} 10... Qc7 {[%clk 1:33:14][%emt 0:00:07]} 11.
Qc2 {[%emt 0:00:59]} 11... Rae8 {[%clk 1:33:39]} 12. Bh4 {[%clk 1:26:26][%emt
0:06:00]} 12... b6 {[%clk 1:32:39][%emt 0:01:31]} 13. Bg3 {[%clk 1:26:02][%emt
0:00:53]} 13... Bxg3 {[%clk 1:32:00][%emt 0:01:09]} 14. hxg3 {[%clk
1:26:25][%emt 0:00:07]} 14... c5 {[%clk 1:27:44][%emt 0:04:46]} 15. b3 {[%clk
1:24:57][%emt 0:01:58]} 15... cxd4 {[%clk 1:26:56][%emt 0:01:18]} 16. Nxd4
{[%clk 1:23:26][%emt 0:02:02]} 16... Nc5 {[%clk 1:22:12][%emt 0:05:14]} 17.
Be2 {[%clk 1:14:56][%emt 0:08:59]} 17... Nce4 {[%clk 1:15:25][%emt 0:07:17]}
18. Bxg4 {[%clk 1:12:58][%emt 0:02:28]} 18... Nxg4 {[%clk 1:14:08][%emt
0:01:47]} 19. Nxe4 {[%clk 1:04:26][%emt 0:09:02]} 19... Rxe4 {[%clk
1:13:40][%emt 0:00:58]} 20. Rxe4 {[%clk 1:04:39][%emt 0:00:18]} 20... dxe4
{[%clk 1:14:04][%emt 0:00:07]} 21. Qxe4 {[%clk 1:02:16][%emt 0:02:52]} 21...
Qxc3 {[%clk 1:13:52][%emt 0:00:41]} 22. Rd1 {[%clk 0:56:56][%emt 0:05:50]}
22... Nf6 {[%clk 1:13:26][%emt 0:00:56]} 23. Qc2 {[%clk 0:56:06][%emt 0:01:20]}
 23... Qa5 {[%clk 1:12:10][%emt 0:01:45]} 24. Nc6 {[%clk 0:52:41][%emt
0:03:56]} 24... Qh5 {[%clk 1:10:57][%emt 0:01:42]} 25. Ne7+ {[%clk
0:50:52][%emt 0:02:20]} 25... Kh8 {[%clk 1:11:19][%emt 0:00:08]} 26. Nf5
{[%clk 0:51:06][%emt 0:00:16]} 26... Qg6 {[%clk 1:09:57][%emt 0:01:51]} 27.
Nd4 {[%clk 0:49:21][%emt 0:02:16]} 27... Qh5 {[%clk 1:09:43][%emt 0:00:44]}
28. Nf3 {[%clk 0:49:26][%emt 0:00:26]} 28... h6 {[%clk 1:09:34][%emt 0:00:38]}
29. Qc4 {[%clk 0:49:24][%emt 0:00:32]} 29... Qa5 {[%clk 1:09:04][%emt 0:01:00]}
 30. b4 {[%clk 0:45:24][%emt 0:04:30]} 30... Qa4 {[%clk 1:08:04][%emt 0:01:30]}
 31. Re1 {[%clk 0:42:09][%emt 0:03:44]} 31... a5 {[%clk 1:06:29][%emt 0:02:07]}
 32. Rb1 {[%clk 0:41:37][%emt 0:01:01]} 32... Kg8 {[%clk 1:03:20][%emt
0:03:39]} 33. Qb3 {[%clk 0:40:46][%emt 0:01:21]} 33... Qxb3 {[%clk
1:02:44][%emt 0:01:06]} 34. Rxb3 {[%clk 0:41:15][%emt 0:00:02]} 34... Rd8
{[%clk 1:02:54][%emt 0:00:20]} 35. Kf1 {[%clk 0:40:29][%emt 0:01:16]} 35... a4
{[%clk 1:02:23][%emt 0:01:02]} 36. Rb2 {[%clk 0:36:26][%emt 0:04:32]} 36...
Ne4 {[%clk 1:01:46][%emt 0:01:07]} 37. Rc2 {[%clk 0:32:18][%emt 0:04:35]}
37... Rd1+ {[%clk 1:00:14][%emt 0:02:06]} 38. Ke2 {[%clk 0:32:04][%emt
0:00:43]} 38... Rb1 {[%clk 0:59:56][%emt 0:00:48]} 39. Ne5 {[%clk
0:26:51][%emt 0:05:43]} 39... Rxb4 {[%clk 0:57:39][%emt 0:02:47]} 40. Nd3
{[%clk 0:25:49][%emt 0:01:32]} 40... Rb1 {[%clk 0:56:13][%emt 0:01:56]} 41.
Rc4 {[%clk 0:25:04][%emt 0:01:14]} 41... f5 {[%clk 0:56:16][%emt 0:00:28]} 42.
Ke3 {[%clk 0:18:59][%emt 0:06:34]} 42... b5 {[%clk 0:55:47][%emt 0:01:00]} 43.
Rb4 {[%clk 0:18:27][%emt 0:01:02]} 43... Rxb4 {[%clk 0:53:42][%emt 0:02:36]}
44. Nxb4 {[%clk 0:18:54][%emt 0:00:02]} 44... g5 {[%clk 0:51:46][%emt 0:02:25]}
 45. g4 {[%clk 0:18:48][%emt 0:00:36]} 45... Nd6 {[%clk 0:51:52][%emt 0:00:25]}
 46. gxf5 {[%clk 0:19:07][%emt 0:00:10]} 46... Nxf5+ {[%clk 0:52:06][%emt
0:00:16]} 47. Ke4 {[%clk 0:18:50][%emt 0:00:48]} 47... Nd6+ {[%clk
0:46:56][%emt 0:05:40]} 48. Kd5 {[%clk 0:19:12][%emt 0:00:08]} 48... Nc4
{[%clk 0:39:58][%emt 0:07:29]} 49. Kc5 {[%clk 0:18:51][%emt 0:00:50]} 49...
Na3 {[%clk 0:36:24][%emt 0:04:04]} 50. Nd5 {[%clk 0:19:04][%emt 0:00:18]}
50... Kg7 {[%clk 0:35:53][%emt 0:01:01]} 51. Kb4 {[%clk 0:16:57][%emt 0:01:28]}
 1/2-1/2

[White "DECLERCK, Timothee"]
[Black "BONESTEVE, Adrien"]
[WhiteElo "1854"]
[BlackElo "1658"]
[Result "1-0"]
[Date "2026.03.04"]

[Event "Chpt Reg Jeunes Occitanie 2026 - Espalion"]
[Site "Espalion, France"]
[Round "2.5"]
[ECO "?"]
[Annotator "?"]
[TimeControl "1h30 + 30sec/cp"]

1. d4 {[%clk 1:30:55][%emt 0:00:04]} 1... d5 {[%clk 1:30:50][%emt 0:00:10]} 2.
c4 {[%clk 1:31:19][%emt 0:00:06]} 2... e6 {[%clk 1:31:07][%emt 0:00:13]} 3.
Nc3 {[%clk 1:31:42][%emt 0:00:07]} 3... Nf6 {[%clk 1:31:22][%emt 0:00:16]} 4.
cxd5 {[%clk 1:31:52][%emt 0:00:20]} 4... exd5 {[%clk 1:31:22][%emt 0:00:29]}
5. Bg5 {[%clk 1:32:07][%emt 0:00:14]} 5... Be7 {[%clk 1:30:47][%emt 0:01:06]}
6. e3 {[%clk 1:32:13][%emt 0:00:24]} 6... O-O {[%clk 1:29:56][%emt 0:01:22]}
7. Bd3 {[%clk 1:32:17][%emt 0:00:26]} 7... h6 {[%clk 1:25:55][%emt 0:04:31]}
8. Bh4 {[%clk 1:30:47][%emt 0:01:59]} 8... c6 {[%clk 1:25:15][%emt 0:01:09]}
9. Nge2 {[%clk 1:29:56][%emt 0:01:23]} 9... Nbd7 {[%clk 1:21:35][%emt 0:04:10]}
 10. O-O {[%clk 1:30:01][%emt 0:00:25]} 10... b6 {[%clk 1:21:07][%emt 0:00:58]}
 11. Qc2 {[%clk 1:25:08][%emt 0:05:23]} 11... c5 {[%clk 1:19:45][%emt 0:01:52]}
 12. dxc5 {[%clk 1:21:07][%emt 0:04:31]} 12... bxc5 {[%clk 1:19:36][%emt
0:00:39]} 13. Rfd1 {[%clk 1:16:07][%emt 0:05:29]} 13... Bb7 {[%clk
1:18:00][%emt 0:02:06]} 14. Bf5 {[%clk 1:09:38][%emt 0:06:59]} 14... Re8
{[%clk 1:13:51][%emt 0:04:40]} 15. Qd2 {[%clk 1:01:41][%emt 0:08:27]} 15...
Nb6 {[%clk 0:55:53][%emt 0:18:28]} 16. Rac1 {[%clk 0:53:14][%emt 0:08:57]}
16... Nc4 {[%clk 0:44:36][%emt 0:11:47]} 17. Qc2 {[%clk 0:53:36][%emt 0:00:08]}
 17... g6 {[%clk 0:38:30][%emt 0:06:35]} 18. Bxf6 {[%clk 0:38:46][%emt
0:15:20]} 18... Bxf6 {[%clk 0:38:42][%emt 0:00:19]} 19. Be4 {[%clk
0:34:22][%emt 0:04:54]} 19... Nb6 {[%clk 0:35:17][%emt 0:03:54]} 20. Bxd5
{[%clk 0:23:12][%emt 0:11:40]} 20... Nxd5 {[%clk 0:23:57][%emt 0:11:51]} 21.
Nxd5 {[%clk 0:21:52][%emt 0:01:50]} 21... Bxd5 {[%clk 0:19:43][%emt 0:04:44]}
22. Nf4 {[%clk 0:18:10][%emt 0:04:11]} 22... Re5 {[%clk 0:18:51][%emt 0:01:22]}
 23. Qxc5 {[%clk 0:17:08][%emt 0:01:32]} 23... Qe7 {[%clk 0:11:03][%emt
0:08:18]} 24. Qxe7 {[%clk 0:17:20][%emt 0:00:19]} 24... Bxe7 {[%clk
0:09:39][%emt 0:01:54]} 25. Nxd5 {[%clk 0:17:27][%emt 0:00:23]} 25... Bf8
{[%clk 0:08:57][%emt 0:01:11]} 26. Nf6+ {[%clk 0:17:35][%emt 0:00:22]} 26...
Kg7 {[%clk 0:09:04][%emt 0:00:23]} 27. Nd7 {[%clk 0:18:00][%emt 0:00:05]}
27... Rb5 {[%clk 0:09:02][%emt 0:00:32]} 28. Nxf8 {[%clk 0:18:25][%emt
0:00:06]} 28... Rxf8 {[%clk 0:09:09][%emt 0:00:22]} 29. b3 {[%clk
0:18:45][%emt 0:00:11]} 29... Ra5 {[%clk 0:09:12][%emt 0:00:27]} 30. Rc2
{[%clk 0:18:46][%emt 0:00:28]} 30... Rb8 {[%clk 0:09:06][%emt 0:00:36]} 31. g3
{[%clk 0:18:41][%emt 0:00:35]} 31... Rb7 {[%clk 0:08:50][%emt 0:00:46]} 32.
Kg2 {[%clk 0:19:03][%emt 0:00:08]} 32... g5 {[%clk 0:07:39][%emt 0:01:42]} 33.
Kf3 {[%clk 0:17:20][%emt 0:02:12]} 33... Rf5+ {[%clk 0:06:45][%emt 0:01:23]}
34. Ke2 {[%clk 0:17:46][%emt 0:00:05]} 34... g4 {[%clk 0:06:34][%emt 0:00:41]}
35. Rd4 {[%clk 0:18:03][%emt 0:00:13]} 35... h5 {[%clk 0:06:42][%emt 0:00:21]}
36. Kd3 {[%clk 0:18:17][%emt 0:00:17]} 36... Kg6 {[%clk 0:06:02][%emt 0:01:09]}
 37. Rc6+ {[%clk 0:17:45][%emt 0:01:04]} 37... Kg5 {[%emt 0:01:15]} 38. f4+
{[%clk 0:17:52]} 38... gxf3 {[%clk 0:05:14][%emt 0:00:56]} 39. h4# {[%clk
0:15:10][%emt 0:00:06]} 1-0

[White "AK, Maxime"]
[Black "BORCEAUX, Theophile"]
[WhiteElo "1800"]
[BlackElo "1888"]
[Result "0-1"]
[Date "2026.03.05"]

[Event "Chpt Reg Jeunes Occitanie 2026 - Espalion"]
[Site "Espalion, France"]
[Round "3.1"]
[ECO "?"]
[Annotator "?"]
[TimeControl "1h30 + 30sec/cp"]

1. c4 {[%clk 1:30:56][%emt 0:00:03]} 1... Nc6 {[%clk 1:30:35][%emt 0:00:25]}
2. Nc3 {[%clk 1:30:30][%emt 0:00:56]} 2... e5 {[%clk 1:30:53][%emt 0:00:12]}
3. Nf3 {[%clk 1:30:18][%emt 0:00:42]} 3... Nf6 {[%clk 1:28:38][%emt 0:02:45]}
4. e3 {[%clk 1:30:23][%emt 0:00:25]} 4... d5 {[%clk 1:25:07][%emt 0:04:01]} 5.
cxd5 {[%clk 1:30:44][%emt 0:00:09]} 5... Nxd5 {[%clk 1:25:28][%emt 0:00:09]}
6. Bb5 {[%clk 1:31:09][%emt 0:00:05]} 6... Nxc3 {[%clk 1:24:34][%emt 0:01:25]}
7. bxc3 {[%clk 1:31:29][%emt 0:00:09]} 7... Bg4 {[%clk 1:21:34][%emt 0:03:30]}
8. Qa4 {[%clk 1:28:09][%emt 0:03:51]} 8... Bd7 {[%clk 1:17:15][%emt 0:04:49]}
9. Qe4 {[%clk 1:22:46][%emt 0:05:53]} 9... Bd6 {[%clk 1:10:49][%emt 0:06:56]}
10. Nxe5 {[%clk 1:13:41][%emt 0:09:34]} 10... Nxe5 {[%clk 1:07:03][%emt
0:04:16]} 11. Bxd7+ {[%clk 1:12:36][%emt 0:01:34]} 11... Qxd7 {[%clk
1:04:51][%emt 0:02:44]} 12. d4 {[%clk 1:06:57][%emt 0:06:08]} 12... Qc6 {[%clk
1:05:12][%emt 0:00:10]} 13. Qxc6+ {[%clk 1:05:52][%emt 0:01:34]} 13... Nxc6
{[%clk 1:05:31][%emt 0:00:12]} 14. Rb1 {[%clk 1:05:54][%emt 0:00:27]} 14...
O-O-O {[%clk 1:04:35][%emt 0:01:27]} 15. O-O {[%clk 1:06:02][%emt 0:00:22]}
15... f5 {[%clk 1:02:57][%emt 0:02:08]} 16. c4 {[%clk 1:05:53][%emt 0:00:39]}
16... b6 {[%clk 1:01:00][%emt 0:02:27]} 17. Rb5 {[%clk 1:05:27][%emt 0:00:55]}
17... g6 {[%clk 0:59:13][%emt 0:02:18]} 18. Bb2 {[%clk 1:03:41][%emt 0:02:16]}
18... Rhe8 {[%clk 0:58:55][%emt 0:00:47]} 19. Rc1 {[%clk 1:03:35][%emt
0:00:36]} 19... a6 {[%clk 0:57:04][%emt 0:02:23]} 20. Rb3 {[%clk 1:03:56][%emt
0:00:07]} 20... Na5 {[%clk 0:57:17][%emt 0:00:18]} 21. Rbc3 {[%clk
1:03:22][%emt 0:01:04]} 21... c5 {[%clk 0:57:34][%emt 0:00:13]} 22. d5 {[%clk
1:00:44][%emt 0:03:08]} 22... Be5 {[%clk 0:55:53][%emt 0:02:10]} 23. R3c2
{[%clk 1:01:07][%emt 0:00:07]} 23... Bxb2 {[%clk 0:56:07][%emt 0:00:18]} 24.
Rxb2 {[%clk 1:01:23][%emt 0:00:13]} 24... Kc7 {[%clk 0:56:31][%emt 0:00:07]}
25. Rc3 {[%clk 0:59:59][%emt 0:01:54]} 25... Re4 {[%clk 0:55:26][%emt 0:01:35]}
 26. Rbc2 {[%clk 1:00:22][%emt 0:00:07]} 26... f4 {[%clk 0:55:28][%emt
0:00:28]} 27. Kf1 {[%emt 0:02:31]} 27... fxe3 {[%clk 0:54:42]} 28. fxe3 {[%clk
0:59:59][%emt 0:00:07]} 28... Rde8 {[%clk 0:54:48][%emt 0:00:24]} 29. Ke2
{[%clk 0:59:56][%emt 0:00:33]} 29... Nb7 {[%clk 0:54:30][%emt 0:00:48]} 30.
Kf3 {[%clk 0:58:21][%emt 0:02:05]} 30... Nd6 {[%clk 0:54:20][%emt 0:00:40]}
31. a4 {[%clk 0:57:11][%emt 0:01:40]} 31... Nf5 {[%clk 0:54:10][%emt 0:00:38]}
32. g4 {[%clk 0:55:18][%emt 0:02:25]} 32... Nxe3 {[%clk 0:51:44][%emt 0:02:56]}
 33. Re2 {[%clk 0:54:24][%emt 0:01:24]} 33... Nxc4 {[%clk 0:52:04][%emt
0:00:09]} 34. Rxe4 {[%clk 0:52:16][%emt 0:02:38]} 34... Nd2+ {[%clk
0:52:24][%emt 0:00:11]} 35. Kf4 {[%clk 0:52:06][%emt 0:00:39]} 35... Rxe4+
{[%clk 0:52:40][%emt 0:00:15]} 36. Kg5 {[%clk 0:52:19][%emt 0:00:17]} 36...
Rxa4 {[%clk 0:52:59][%emt 0:00:12]} 37. Rh3 {[%clk 0:52:07][%emt 0:00:40]}
37... Ne4+ {[%clk 0:52:51][%emt 0:00:38]} 38. Kh6 {[%clk 0:52:28][%emt
0:00:08]} 38... Nf2 {[%clk 0:52:07][%emt 0:01:16]} 39. Rf3 {[%clk
0:52:50][%emt 0:00:06]} 39... Nxg4+ {[%clk 0:52:24][%emt 0:00:14]} 40. Kxh7
{[%clk 0:53:11][%emt 0:00:09]} 40... Nxh2 {[%clk 0:52:38][%emt 0:00:16]} 41.
Rf7+ {[%clk 0:53:33][%emt 0:00:08]} 41... Kd6 {[%emt 0:00:15]} 0-1

[White "FOPPOLO, Marvin"]
[Black "DURKA-VINCENDET, Yan"]
[WhiteElo "1880"]
[BlackElo "1761"]
[Result "1-0"]
[Date "2026.03.05"]